[Event "Menorca Open-A 2022"]
[Site "Menorca"]
[Date "2022.04.22"]
[Round "4.5"]
[White "Sargsyan, Shant"]
[Black "Alonso Rosell, Alvar"]
[Result "1-0"]
[ECO "D38"]
[WhiteElo "2639"]
[BlackElo "2564"]
[Annotator "TA"]
[PlyCount "59"]
[EventDate "2022.04.20"]
[EventType "swiss"]
[EventCountry "ESP"]
[SourceTitle "playchess.com"]
[Source "ChessBase"]
[SourceQuality "1"]
[TimeControl "5400+30"]

{[%evp 12,59,31,25,22,31,19,32,33,32,37,43,58,30,52,0,0,0,20,18,27,22,30,15,19,14,25,18,50,57,55,21,178,180,176,164,235,220,268,262,262,270,259,259,240,242,1052,1041,831,802]} 1. d4 {[%emt 0:02:48]} Nf6 {[%emt 0:00:12]} 2. c4 {[%emt 0:00:17]} e6 {[%emt 0:00:06]} 3. Nf3 {[%emt 0:00:09]} d5 {[%emt 0:00:07]} 4. Nc3 {[%emt 0:00:08]} Bb4 {[%emt 0:00:06]} 5. cxd5 {[%emt 0:01:03]} exd5 {[%emt 0:00:15]} 6. Bg5 {[%emt 0:00:05][%cal Bc1g5,Bg5h4,Bh4g3][%mdl 32]} h6 {[%emt 0:00:17]} 7. Bh4 {[%emt 0:00:11]} Bf5 {[%emt 0:00:12] 7...Bf5 is a critical line. D38: Queen's Gambit Declined: Ragozin Defence (4 Nf3 Bb4).} 8. Qa4+ {[%emt 0:00:46]} Nc6 {[%emt 0:01:11]} 9. e3 {[%emt 0:00:13][%cal Of1a6]} g5 {[%emt 0:28:37] White is slightly better.} 10. Bg3 {[%emt 0:00:19]} Ne4 {[%emt 0:00:17]} 11. Bb5 {[%emt 0:04:18][%csl LRb4,LRc6] Black must now prevent Qxb4.} Bd7 {[%emt 0:17:23] [#]} ({Much less strong is} 11... Nxg3 12. hxg3 Bd7 13. Qb3 $16) 12. Qb3 $146 {[%emt 0:21:30]} ({Predecessor:} 12. Rc1 Bxc3+ 13. bxc3 Ne7 14. Ne5 c6 15. Bd3 f6 16. Nxd7 Qxd7 17. c4 Nxg3 18. hxg3 {0-1 (37) Sardana,R (2461)-Bluebaum,M (2669) Chess.com INT 2021}) 12... O-O {[%emt 0:10:56]} ({But not} 12... Nxg3 13. hxg3 a6 14. Bxc6 Bxc3+ 15. Qxc3 $16) 13. Bxc6 {[%emt 0:02:12]} (13. Nd2 $14) 13... Bxc3+ $11 {[%emt 0:01:27]} 14. bxc3 {[%emt 0:00:05]} Bxc6 {[%emt 0:01:51]} 15. Ne5 {[%emt 0:01:36][%cal Bf3e5,Be5d3,Bd3b4][%mdl 32]} Qe8 {[%emt 0:21:38]} 16. f3 {[%emt 0:17:48]} Nd6 {[%emt 0:05:39]} 17. Kf2 {[%emt 0:03:44]} f6 {[%emt 0:04:16]} 18. Nd3 {[%emt 0:05:41]} Nc4 {[%emt 0:00:42]} 19. Rae1 {[%emt 0:02:06]} Qf7 {[%emt 0:01:39]} 20. h4 {[%emt 0:00:42]} Qg6 {[%emt 0:00:48]} 21. Nb4 {[%emt 0:03:24][%cal Oe3e4] aiming for e4!} (21. Nb2 $5 {[%cal Rb2c4]}) 21... f5 {[%emt 0:02:22] Against e4. Loses the game.} (21... a5 $11 {and Black stays safe.} 22. Nxc6 bxc6) 22. hxg5 $18 {[%emt 0:00:51]} hxg5 {[%emt 0:00:02]} 23. Bxc7 {[%emt 0:02:43]} Rae8 {[%emt 0:01:02] [#]} (23... Rf7 $142) 24. Nd3 $1 {[%emt 0:02:22]} Rf7 {[%emt 0:00:51] [#]} 25. Ne5 $1 {[%emt 0:01:08]} Nxe5 {[%emt 0:00:04]} 26. Bxe5 {[%emt 0:00:05][%csl Ge5][%cal Rh1h8] Really sharp!} Rh7 {[%emt 0:00:07] Against Rh8+} 27. Rxh7 {[%emt 0:01:57]} Qxh7 {[%emt 0:00:06]} 28. Qb1 {[%emt 0:00:11] Threatens to win with Rh1.} Kf7 $2 {[%emt 0:01:44]} (28... f4 29. exf4 Qxb1 30. Rxb1 gxf4 31. Bxf4 Rc8) 29. Rh1 {[%emt 0:00:14]} Qg6 {[%emt 0:00:03]} 30. g4 {[%emt 0:00:33] Weighted Error Value: White=0.05 (flawless) /Black=0.29 (precise)} 1-0

[Event "Menorca Open-A 2022"]
[Site "Menorca"]
[Date "2022.04.22"]
[Round "4.6"]
[White "Peng, Li Min"]
[Black "Nihal Sarin"]
[Result "1/2-1/2"]
[ECO "B15"]
[WhiteElo "2517"]
[BlackElo "2648"]
[Annotator "TA"]
[PlyCount "70"]
[EventDate "2022.04.20"]
[EventType "swiss"]
[EventCountry "ESP"]
[SourceTitle "playchess.com"]
[Source "ChessBase"]
[SourceQuality "1"]
[TimeControl "5400+30"]

{[%evp 14,70,26,21,41,29,28,45,42,31,53,50,41,20,20,-6,0,-4,0,-19,0,-48,-30,-43,-32,-97,-85,-75,-60,-59,-50,-270,-290,-222,0,0,0,0,12,-21,0,-12,0,-14,0,0,0,-145,-154,-143,0,-35,0,-33,0,0,0,0,0]} 1. e4 {[%emt 1:31:00]} c6 {[%emt 0:01:33]} 2. d4 {[%emt 0:00:00]} d5 {[%emt 0:00:26]} 3. Nc3 {[%emt 0:00:00]} dxe4 {[%emt 0:00:29]} 4. Nxe4 {[%emt 0:00:00]} Nf6 {[%emt 0:00:07]} 5. Nxf6+ {[%emt 0:00:00]} exf6 {[%emt 0:00:04]} 6. c3 {[%emt 0:00:00]} Bd6 {[%emt 0:00:03]} 7. Bd3 {[%emt 0:00:00]} O-O {[%emt 0:00:05]} 8. Qc2 {[%emt 0:00:00] Active counter play!} Re8+ {[%emt 0:00:03] B15: Caro-Kann: 3 Nc3: 3...g6 and 3...dxe4 4 Nxe4 Nf6 5 Nxf6+ exf6.} 9. Ne2 {[%emt 0:00:00]} h5 {[%emt 0:00:04]} 10. O-O {[%emt 0:00:00]} h4 {[%emt 0:02:05] White is slightly better.} 11. h3 {[%emt 0:00:00]} Nd7 {[%emt 0:00:19][%cal Bb8d7,Bd7f8,Bf8h7][%mdl 32]} 12. Be3 {[%emt 0:00:00]} Nf8 {[%emt 0:00:37]} 13. Rae1 {[%emt 0:00:00]} Bc7 {[%emt 0:09:40]} 14. Qd2 {[%emt 0:00:00] [#]} Qd6 $146 {[%emt 0:09:15][%csl Gc7][%cal Rd6h2]} ({Predecessor:} 14... Ng6 15. Bxg6 fxg6 16. Bf4 g5 17. Bxc7 Qxc7 18. Nc1 Bf5 19. Nd3 a5 20. f4 g4 21. hxg4 Bxg4 {0-1 (37) Maneluk,D (2283)-Pantzar,M (2422) Chess.com INT 2022}) 15. f4 $1 {[%emt 0:00:00]} b5 {[%emt 0:19:15]} 16. f5 {[%emt 0:00:00] Bf4 is the strong threat.} g5 {[%emt 0:16:58] Prevents Bf4.} 17. Rf3 {[%emt 0:00:00]} (17. Bf4 $11 {should be considered.} gxf4 18. Rxf4) 17... Nh7 $36 {[%emt 0:10:38][%mdl 2048] White is under pressure.} 18. Kf1 {[%emt 0:00:00]} Bb7 {[%emt 0:03:17]} 19. c4 {[%emt 0:00:00]} (19. Ng1 $15) 19... bxc4 $17 {[%emt 0:01:00]} ({Much worse is} 19... Qh2 $6 20. Bg1 Qh1 21. Re3 $11) 20. Bxc4 {[%emt 0:00:00]} Re7 {[%emt 0:01:59]} ({Don't play} 20... Qh2 $6 21. Bg1 Qh1 22. Re3 $11) 21. Nc3 {[%emt 0:00:00]} Rae8 {[%emt 0:00:27][%cal Og5g4] White must now prevent ...g4!} 22. Bf2 $2 {[%emt 0:00:00] [#]} (22. Re2 $1 $15) 22... Rxe1+ $1 $19 {[%emt 0:02:34]} 23. Bxe1 {[%emt 0:00:00]} Bb6 $2 {[%emt 0:06:26]} (23... c5 $19 24. Nb5 Qh2 25. Nxc7 Re4) 24. Bf2 $11 {[%emt 0:00:00]} Kg7 {[%emt 0:04:25]} 25. Qd3 {[%emt 0:00:00]} Bc8 {[%emt 0:01:33]} 26. a3 {[%emt 0:00:00]} Qh2 {[%emt 0:01:09] Threatens to win with ...Qh1+.} (26... g4 $5 27. hxg4 Ng5 $11) 27. Ne4 {[%emt 0:00:00]} Rd8 {[%emt 0:02:14] And now ...Qh1+ would win.} 28. Bg1 {[%emt 0:00:00]} Qc7 {[%emt 0:00:05][%cal Oc6c5]} (28... Qh1 $2 29. Nf2 Rxd4 30. Nxh1 $18) 29. b4 {[%emt 0:00:00]} a5 {[%emt 0:00:27]} 30. Nc5 {[%emt 0:00:00]} (30. bxa5 $11 {keeps the balance.} Bxa5 31. g4) 30... axb4 $17 {[%emt 0:00:05]} 31. axb4 {[%emt 0:00:00] [#]} Qa7 {[%emt 0:00:18]} (31... g4 $1 $17 {[%cal Rg4f3]} 32. hxg4 Ng5) 32. Qc3 {[%emt 0:00:00]} (32. Be3 $5 {[%cal Rf1g1]}) 32... Qc7 {[%emt 0:00:36]} (32... Qb8 $5 {[%cal Rg5g4]}) 33. Bf2 {[%emt 0:00:00]} Re8 {[%emt 0:01:33]} 34. g3 {[%emt 0:02:28]} hxg3 {[%emt 0:04:33]} 35. Bxg3 {[%emt 0:00:02]} Qe7 {[%emt 0:00:07] Weighted Error Value: White=0.32/Black=0.18 (very precise)} 1/2-1/2

[Event "Menorca Open-A 2022"]
[Site "Menorca"]
[Date "2022.04.22"]
[Round "4.7"]
[White "Santos Ruiz, Miguel"]
[Black "Vasquez Schroeder, Rodrigo"]
[Result "1-0"]
[ECO "B55"]
[WhiteElo "2597"]
[BlackElo "2500"]
[Annotator "TA"]
[PlyCount "77"]
[EventDate "2022.04.20"]
[EventType "swiss"]
[EventCountry "ESP"]
[SourceTitle "playchess.com"]
[Source "ChessBase"]
[SourceQuality "1"]
[TimeControl "5400+30"]

{[%evp 16,77,33,41,38,42,44,43,47,42,44,39,45,48,96,47,84,75,100,111,96,86,89,93,84,84,84,97,100,109,101,93,100,69,122,115,118,117,162,129,117,15,8,11,10,15,10,0,0,0,49,15,36,26,202,215,213,212,251,224,346,300,340,356]} 1. e4 {[%emt 0:00:03]} c5 {[%emt 0:00:14]} 2. Nf3 {[%emt 0:00:03]} d6 {[%emt 0:00:10]} 3. d4 {[%emt 0:00:03]} cxd4 {[%emt 0:00:11]} 4. Nxd4 {[%emt 0:00:03]} Nf6 {[%emt 0:00:07]} 5. f3 {[%emt 0:00:03]} Nc6 {[%emt 0:02:15]} 6. c4 {[%emt 0:00:26]} Qb6 {[%emt 0:01:01]} 7. Nc2 {[%emt 0:01:24]} g6 {[%emt 0:03:32]} 8. Nc3 {[%emt 0:00:11]} Bg7 {[%emt 0:00:45]} 9. Rb1 {[%emt 0:00:04]} Ng4 {[%emt 0:19:22][%csl Gg4][%cal Rb6f2] Prevents Be3. B55: Sicilian: 2...d6 3 d4 cxd4 4 Nxd4 Nf6 5 f3.} 10. Qd2 {[%emt 0:00:33] Inhibits Qf2+. aiming for Nd5.} Bh6 {[%emt 0:00:49]} 11. Qe2 {[%emt 0:01:51] And now Nd5 would win.} Bxc1 {[%emt 0:00:36] White is slightly better.} 12. Rxc1 {[%emt 0:00:11]} (12. Nd5 {seems wilder.} Qd8 13. Rxc1 e6 14. Nc3) 12... Nf6 {[%emt 0:04:36]} (12... Qxb2 $2 13. Qd2 $18) 13. Qd2 {[%emt 0:02:23]} O-O {[%emt 0:01:28]} (13... Qxb2 $2 14. Rb1 Qxb1+ 15. Nxb1 $18) 14. Be2 {[%emt 0:02:10]} e6 {[%emt 0:11:08]} (14... Qxb2 $2 15. Rb1 Qxb1+ 16. Nxb1 $18) (14... Be6 $14 {was preferrable.}) 15. Na4 {[%emt 0:09:39]} ({White should play} 15. Rd1 $16) 15... Qc7 {[%emt 0:00:18][%cal Od6d5]} 16. O-O {[%emt 0:00:19] [#]} Rd8 $146 {[%emt 0:01:38]} ({Predecessor:} 16... e5 17. Nc3 Be6 18. Kh1 {½-½ (20) De Jong,M (2317)-Bosch,J (2433) Hoogeveen 1999}) 17. Nc3 {[%emt 0:27:52] Inhibits d5.} Qe7 {[%emt 0:02:31][%cal Od6d5]} 18. Rfd1 {[%emt 0:07:18]} b6 {[%emt 0:00:25]} 19. f4 {[%emt 0:01:44]} Bb7 {[%emt 0:00:57]} 20. Qe3 {[%emt 0:01:53]} Rab8 {[%emt 0:03:53]} 21. Rd2 {[%emt 0:01:37]} Ba8 {[%emt 0:00:24]} 22. Rcd1 {[%emt 0:01:29]} Ne8 {[%emt 0:01:18]} 23. Qg3 {[%emt 0:01:36]} a6 {[%emt 0:00:59]} 24. h4 {[%emt 0:01:11][%cal Bh2h4,Bh4h5][%mdl 32]} Rbc8 {[%emt 0:06:15]} (24... b5 $14) 25. h5 {[%emt 0:02:04]} Nf6 {[%emt 0:00:47][%cal Ob6b5]} 26. Ne3 {[%emt 0:01:43]} Kh8 {[%emt 0:04:02]} 27. Qg5 {[%emt 0:04:57]} gxh5 {[%emt 0:08:17] [#]} 28. Qh4 {[%emt 0:07:03] &Bianco is much more active.} ({Better is} 28. Ncd5 $1 $16 {[%mdl 512]} Nxd5 29. cxd5 (29. exd5 exd5 30. Nxd5 Qxg5 $16) 29... Qxg5 30. fxg5 exd5 31. Nxd5 (31. Bxa6 d4 $14)) 28... Nxe4 $11 {[%emt 0:06:29]} 29. Qxe7 {[%emt 0:00:36]} Nxe7 {[%emt 0:00:04]} 30. Nxe4 {[%emt 0:00:07]} Bxe4 {[%emt 0:00:06]} 31. Rxd6 {[%emt 0:00:34]} Rxd6 {[%emt 0:00:13]} 32. Rxd6 {[%emt 0:00:04]} Nc6 {[%emt 0:02:53]} (32... h4 $11) 33. Rd7 {[%emt 0:04:20][%mdl 1024] White has compensation.} Bg6 {[%emt 0:03:14]} 34. Bf3 {[%emt 0:01:28]} Na5 $2 {[%emt 0:01:29] Black cannot hold the game after this.} (34... a5 $11 {and Black has nothing to worry.}) 35. b4 $1 $18 {[%emt 0:00:59]} Nc6 {[%emt 0:01:10] [#]} ({Weaker is} 35... Nxc4 36. Bb7 $1 $16) 36. a3 {[%emt 0:00:05]} b5 {[%emt 0:04:26]} 37. Rd6 {[%emt 0:01:29]} Nb8 {[%emt 0:01:49]} (37... Ne7 {was necessary.} 38. c5 Kg7 39. Rxa6 Kf6) 38. Bb7 {[%emt 0:01:12]} Rg8 {[%emt 0:01:20]} 39. c5 {[%emt 0:00:08] Weighted Error Value: White=0.12 (very precise) /Black=0.29 (precise)} 1-0

[Event "Menorca Open-A 2022"]
[Site "Menorca"]
[Date "2022.04.22"]
[Round "4.8"]
[White "Iermito, Sebastian"]
[Black "Kosakowski, Jakub"]
[Result "1/2-1/2"]
[ECO "B43"]
[WhiteElo "2525"]
[BlackElo "2452"]
[Annotator "TA"]
[PlyCount "62"]
[EventDate "2022.04.20"]
[EventType "swiss"]
[EventCountry "ESP"]
[SourceTitle "playchess.com"]
[Source "ChessBase"]
[SourceQuality "1"]
[TimeControl "5400+30"]

{[%evp 16,62,3,-28,112,120,114,114,102,122,114,119,105,111,114,99,106,30,39,0,0,0,0,0,6,8,4,20,8,0,25,32,110,74,199,193,211,203,393,0,0,0,373,0,1,0,0,-8,-6]} 1. e4 {[%emt 0:00:02]} c5 {[%emt 0:00:23]} 2. Nc3 {[%emt 0:00:06]} a6 {[%emt 0:00:24]} 3. g3 {[%emt 0:01:32]} b5 {[%emt 0:01:03]} 4. Bg2 {[%emt 0:00:08]} Bb7 {[%emt 0:00:14]} 5. Nge2 {[%emt 0:01:06]} e6 {[%emt 0:02:36]} 6. d4 {[%emt 0:02:34]} b4 {[%emt 0:02:42]} 7. Na4 {[%emt 0:01:46]} cxd4 {[%emt 0:00:59]} 8. Nxd4 {[%emt 0:00:42]} Nf6 {[%emt 0:01:52]} 9. O-O {[%emt 0:00:42]} d5 {[%emt 0:29:33] B43: Sicilian: Kan Variation: 5 Nc3.} (9... Bxe4 $11 {keeps the balance.} 10. Bxe4 Nxe4) 10. exd5 $16 {[%emt 0:06:30]} Bxd5 {[%emt 0:00:36]} 11. Bxd5 {[%emt 0:00:27]} Nxd5 {[%emt 0:00:10] White is better.} 12. c4 {[%emt 0:09:24]} bxc3 {[%emt 0:02:06]} 13. bxc3 {[%emt 0:00:51] [#]} ({Resist} 13. Nxc3 Nxc3 14. bxc3 Bc5 $14) 13... Be7 $146 {[%emt 0:05:11]} ({Predecessor:} 13... Nd7 14. c4 N5f6 15. Qe2 Qa5 {½-½ (15) Nagy,G (2430)-Tesik,C (2340) Hungary 2017}) 14. c4 {[%emt 0:24:56]} Nf6 {[%emt 0:00:36] [#]} 15. Qf3 $1 {[%emt 0:02:13]} Ra7 {[%emt 0:00:21] [#]} 16. Be3 {[%emt 0:00:45] 0x0.001c68f4b568dp-1022s more active pieces.} (16. Rb1 $1 $16) 16... Rd7 $1 $11 {[%emt 0:00:23]} 17. Nc6 {[%emt 0:01:19]} Nxc6 {[%emt 0:00:17]} 18. Qxc6 {[%emt 0:00:02] And now Nb6 would win.} O-O {[%emt 0:00:54]} 19. Qxa6 {[%emt 0:00:35]} Ng4 {[%emt 0:00:30]} 20. Bb6 $36 {[%emt 0:01:21][%mdl 2048] White has some pressure.} Qa8 {[%emt 0:04:59]} 21. Qxa8 {[%emt 0:16:41]} Rxa8 {[%emt 0:00:38]} 22. Nc3 {[%emt 0:00:01]} Ne5 {[%emt 0:12:23]} (22... Bf6 $5 {[%cal Rf6c3]} 23. Rac1 Ne5 $11) 23. c5 {[%emt 0:01:57]} Rd3 {[%emt 0:00:16]} (23... Rd2 $14) 24. Nb5 $1 $16 {[%emt 0:01:40] Strongly threatening a4.} Nd7 {[%emt 0:01:25]} (24... Ra4 $16) 25. Rfc1 $18 {[%emt 0:05:05]} Rb8 {[%emt 0:02:25] [#]} 26. Na7 $1 {[%emt 0:02:48] Hoping for Nc6.} ({Not} 26. a4 Nxb6 27. cxb6 Rxb6 $11) 26... Bf8 $2 {[%emt 0:05:08]} (26... Bg5 {keeps fighting.}) 27. Nc6 $2 {[%emt 0:09:19]} ({White should play} 27. Rab1 $18) 27... Rc8 $11 {[%emt 0:01:39]} 28. Na7 {[%emt 0:00:01][%mdl 8192]} (28. Na5 $11) 28... Rb8 $1 $18 {[%emt 0:03:54]} 29. Nc6 $2 {[%emt 0:00:02]} (29. Rab1 $18) 29... Rc8 $11 {[%emt 0:00:13] The position is equal.} 30. Na5 {[%emt 0:01:12]} Ra3 {[%emt 0:09:42]} (30... Nxc5 $2 {[#]} 31. Nb7 $1 $18) 31. Nc4 {[%emt 0:10:13]} Ra6 {Weighted Error Value: White=0.52/Black=0.34} 1/2-1/2

[Event "Menorca Open-A 2022"]
[Site "Menorca"]
[Date "2022.04.22"]
[Round "4.9"]
[White "Narciso Dublan, Marc"]
[Black "Nasuta, Grzegorz"]
[Result "1/2-1/2"]
[ECO "D02"]
[WhiteElo "2477"]
[BlackElo "2518"]
[Annotator "TA"]
[PlyCount "68"]
[EventDate "2022.04.20"]
[EventType "swiss"]
[EventCountry "ESP"]
[SourceTitle "playchess.com"]
[Source "ChessBase"]
[SourceQuality "1"]
[TimeControl "5400+30"]

{[%evp 16,68,28,25,40,22,39,34,66,68,68,54,57,28,29,36,39,37,47,5,16,17,8,21,19,-4,-4,-12,-14,-14,-14,-16,-12,-12,-12,-31,0,0,0,0,-6,-7,0,0,0,0,0,0,0,0,0,0,0,0,0]} 1. d4 {[%emt 0:00:03]} d5 {[%emt 0:00:09]} 2. Nf3 {[%emt 0:00:08]} Nf6 {[%emt 0:00:05]} 3. Bf4 {[%emt 0:00:09]} c5 {[%emt 0:02:32]} 4. e3 {[%emt 0:00:08]} Nc6 {[%emt 0:00:05]} 5. Nbd2 {[%emt 0:00:10]} cxd4 {[%emt 0:02:41]} 6. exd4 {[%emt 0:00:07]} g6 {[%emt 0:00:03]} 7. c3 {[%emt 0:02:51]} Bg7 {[%emt 0:00:05]} 8. h3 {[%emt 0:01:58]} O-O {[%emt 0:06:06]} 9. Be2 $1 {[%emt 0:00:25] The main line 9.Be2 scores better than 9.Bd3.} Bf5 {[%emt 0:00:51] D02: 1 d4 d5 2 Nf3 sidelines, including 2...Nf6 3 g3 and 2...Nf6 3 Bf4.} 10. O-O {[%emt 0:01:53]} Rc8 {[%emt 0:04:21]} 11. Qb3 {[%emt 0:14:23]} Qb6 {[%emt 0:07:36] White is slightly better.} 12. Rfe1 {[%emt 0:05:40] [#]} Rfd8 $146 {[%emt 0:05:28]} ({Predecessor:} 12... Qxb3 13. axb3 a6 14. b4 Ne4 15. b5 axb5 16. Bxb5 Ra8 17. Nxe4 Bxe4 18. Nd2 e6 19. Rxa8 Rxa8 20. Nxe4 dxe4 21. Rxe4 {1-0 (58) Rocchetti,M (1978)-Romagnoli,M (1891) Rome 2004}) 13. Bf1 {[%emt 0:02:46]} h6 {[%emt 0:03:04]} 14. Ne5 {[%emt 0:03:58]} g5 {[%emt 0:04:05]} 15. Bh2 {[%emt 0:02:02]} e6 {[%emt 0:11:51]} 16. g4 {[%emt 0:05:36] [#] Strongly threatening Qxb6.} Bh7 {[%emt 0:00:19]} 17. Bd3 {[%emt 0:02:27]} Nxe5 {[%emt 0:06:23]} 18. Bxh7+ {[%emt 0:00:12]} Nxh7 {[%emt 0:00:06][%cal Bf6h7,Bh7f8,Bf8g6,Bg6h4,Bh4f3][%mdl 32]} 19. Qxb6 {[%emt 0:08:48]} axb6 {[%emt 0:01:30]} 20. dxe5 {[%emt 0:01:19]} d4 {[%emt 0:00:42]} 21. Ne4 {[%emt 0:00:36]} dxc3 {[%emt 0:00:18]} 22. bxc3 {[%emt 0:00:30]} Nf8 {[%emt 0:04:20]} 23. Rab1 {[%emt 0:01:13]} Ng6 {[%emt 0:02:10]} 24. Rxb6 {[%emt 0:03:59]} Nh4 {[%emt 0:37:40] [#] Threatens to win with ...Nf3+.} 25. Reb1 {[%emt 0:06:19]} Nf3+ {[%emt 0:00:00]} (25... Rc4 $5 {[%cal Rc4e4]} 26. Nf6+ Bxf6 27. exf6 Nf3+ 28. Kg2 Nxh2 $11) 26. Kg2 {[%emt 0:00:19] The position is equal.} Nxh2 {[%emt 0:00:00]} 27. Kxh2 {[%emt 0:04:37]} Bxe5+ {[%emt 0:00:00]} 28. Kg2 {[%emt 0:00:13]} Bxc3 {[%emt 0:00:00]} 29. Rxb7 {[%emt 0:03:32]} Be5 {[%emt 0:00:00]} 30. R1b5 {[%emt 0:10:45]} Rd5 {[%emt 0:00:00]} 31. Rxd5 {[%emt 0:00:48]} exd5 {[%emt 0:00:00]} 32. Ng3 {[%emt 0:00:07]} Bxg3 {[%emt 0:00:00]} 33. Kxg3 {[%emt 0:00:07]} Ra8 {[%emt 0:00:00]} 34. Rd7 {[%emt 0:01:01]} Ra5 {[%emt 0:05:00] Weighted Error Value: White=0.07 (flawless) /Black=0.05 (flawless)} 1/2-1/2

[Event "Menorca Open-A 2022"]
[Site "Menorca"]
[Date "2022.04.22"]
[Round "4.10"]
[White "Cuenca Jimenez, Jose Fernando"]
[Black "Romanishin, Oleg M"]
[Result "1/2-1/2"]
[ECO "C58"]
[WhiteElo "2558"]
[BlackElo "2415"]
[Annotator "TA"]
[PlyCount "71"]
[EventDate "2022.04.20"]
[EventType "swiss"]
[EventCountry "ESP"]
[SourceTitle "playchess.com"]
[Source "ChessBase"]
[SourceQuality "1"]
[TimeControl "5400+30"]

{[%evp 13,71,36,42,20,36,32,37,52,53,60,60,51,60,59,65,58,61,67,71,60,74,84,125,128,145,150,141,149,162,147,180,180,176,174,168,169,181,158,187,194,185,125,245,138,157,150,155,162,155,66,75,79,79,72,63,0,0,-12,-12,-14]} 1. e4 {[%emt 0:00:09]} e5 {[%emt 0:00:21]} 2. Nf3 {[%emt 0:00:17]} Nc6 {[%emt 0:00:03]} 3. Bc4 {[%emt 0:00:40]} Nf6 {[%emt 0:00:10]} 4. Ng5 {[%emt 0:00:35]} d5 {[%emt 0:00:09]} 5. exd5 {[%emt 0:00:06]} Na5 {[%emt 0:01:20]} 6. Bb5+ {[%emt 0:00:39]} Bd7 {[%emt 0:00:26]} 7. Qe2 {[%emt 0:00:30]} Be7 {[%emt 0:00:08]} 8. Nf3 {[%emt 0:00:48] C58: Two Knights: 4 Ng5 d5 5 exd5 Na5 sidelines.} (8. b4 Bxb4 9. Qxe5+ Kf8 $11) 8... O-O {[%emt 0:06:12] 8...Nxd5 injects fresh life into this line.} 9. Bxd7 {[%emt 0:00:05]} Qxd7 {[%emt 0:01:25]} 10. Nxe5 {[%emt 0:00:04] White is slightly better.} Qxd5 {[%emt 0:01:56]} 11. O-O {[%emt 0:00:17]} Bd6 {[%emt 0:07:01]} 12. Nf3 {[%emt 0:00:44]} Rfe8 {[%emt 0:07:00]} 13. Qd1 {[%emt 0:02:29]} c5 {[%emt 0:07:41]} 14. d3 {[%emt 0:05:51] [#]} Nc6 $146 {[%emt 0:03:11]} ({Predecessor:} 14... h6 15. Bd2 Nc6 16. Bc3 Qf5 17. Bxf6 Qxf6 18. Nc3 Rad8 19. Re1 Bb8 20. Rb1 a6 21. Rxe8+ Rxe8 {½-½ (71) Goreczny,G-Baron,M ICCF email 2016}) 15. Bg5 {[%emt 0:08:00]} Ng4 {[%emt 0:02:43][%cal Og4h2] Hoping for ...Nxh2!} 16. Nc3 {[%emt 0:04:37][%cal Bb1c3,Bc3e4,Be4c5][%mdl 32]} Qf5 {[%emt 0:02:56][%cal Od6h2]} 17. Ne4 {[%emt 0:02:36]} Bc7 {[%emt 0:00:10][%cal Oc5c4]} 18. h3 {[%emt 0:07:20]} Nge5 {[%emt 0:00:16]} 19. Nh4 $36 {[%emt 0:01:10][%mdl 2048] White is in control.} Qc8 {[%emt 0:20:52]} 20. Nxc5 {[%emt 0:03:34]} b6 {[%emt 0:01:24]} 21. Nb3 {[%emt 0:08:09]} h6 {[%emt 0:10:14]} 22. Bd2 {[%emt 0:09:14]} a5 {[%emt 0:02:31][%cal Ba7a5,Ba5a4][%mdl 32]} 23. f4 {[%emt 0:04:19]} a4 {[%emt 0:01:10]} 24. fxe5 {[%emt 0:02:00][%cal Oh4f5]} axb3 {[%emt 0:00:16]} 25. Nf5 $1 {[%emt 0:08:40][%cal Of5g7] And now Nxg7! would win.} (25. axb3 $6 Rxa1 26. Qxa1 Nd4 $16) (25. cxb3 Bxe5 26. Bc3 Qd7 $16) 25... Bxe5 {[%emt 0:00:23] [#] Strongly threatening ...Nd4.} 26. c3 {[%emt 0:04:44] Against Nd4} ({Inferior is} 26. axb3 Rxa1 27. Qxa1 Nd4 28. Nxd4 (28. Ne3 Nxc2 29. Nxc2 Qxc2 $15) 28... Bxd4+ 29. Kh1 Qxc2 $11) ({Weaker is} 26. cxb3 Nd4 27. Ne3 Bb8 $11) 26... Rxa2 {[%emt 0:06:00]} 27. Rb1 {[%emt 0:01:12]} (27. d4 $18) 27... Ra5 {[%emt 0:08:57] [#]} (27... Ne7 $16) 28. Qxb3 {[%emt 0:04:23]} ({White should play} 28. Qf3 $1 $18) 28... Bh2+ $16 {[%emt 0:00:51]} 29. Kxh2 {[%emt 0:00:05]} Rxf5 {[%emt 0:00:05]} 30. Qxb6 {[%emt 0:01:19]} Re2 {[%emt 0:01:55][%cal Be8e2,Be2d2,Bd2b2][%mdl 32] Threatens to win with ...Rxf1.} 31. Rbe1 {[%emt 0:17:38]} Rxd2 $14 {[%emt 0:05:36]} 32. Rxf5 {[%emt 0:00:02]} Qxf5 {[%emt 0:00:09]} 33. Qxc6 {[%emt 0:00:05]} Qxd3 {[%emt 0:00:16]} 34. Re4 {[%emt 0:00:48]} ({Better is} 34. b4 $14) 34... Qf1 $1 $11 {[%emt 0:00:50][%csl Gf1][%cal Rd2g2]} 35. Rd4 {[%emt 0:04:18]} Rxb2 {[%emt 0:00:44]} 36. Qe4 {[%emt 0:00:28] Weighted Error Value: White=0.13 (very precise) /Black=0.09 (flawless)} 1/2-1/2